bitfinex/quotes_ETHUSD_20260126
["timestamp","ask_amount","ask_price","bid_price","bid_amount"]
[1769415810300,0.05113782,2934.5,2931.9,0.05854498]
[1769415810459,0.05113782,2933.9,2931.8,0.42637329]
[1769415810658,0.05113782,2934.1,2931.7,0.85273809]
[1769415810858,0.05113782,2933.7,2931.6,0.85277188]
[1769415811117,3.43159699,2934.2,2930.8,0.716]
[1769415811261,1.19389843,2935.1,2930.8,0.716]
[1769415811262,0.34827348,2934.1,2931.5,3.59012803]
[1769415811599,3.27965481,2935.0,2932.3,0.05113782]
[1769415811783,0.05113782,2934.9,2932.0,0.05113782]
[1769415811985,3.27965481,2935.0,2932.7,0.05113782]
[1769415812169,0.05113782,2934.9,2932.4,0.716]
[1769415812370,3.27965481,2935.0,2931.9,0.05113782]
[1769415812684,0.44224154,2934.9,2932.2,3.211]
[1769415812864,3.27965481,2935.0,2932.6,0.05113782]
[1769415813255,0.05113782,2934.9,2932.3,0.85257306]
[1769415813454,0.05113782,2934.9,2932.4,0.716]
[1769415813887,0.05113782,2934.9,2932.2,3.41029226]
[1769415813888,0.05113782,2933.9,2932.2,0.85259167]
[1769415814093,0.05113782,2933.9,2930.4,7.4936808]
[1769415814094,0.05113782,2933.9,2928.3,0.85653586]
[1769415814095,3.43159699,2932.2,2928.3,0.85653586]
[1769415814265,7.54481862,2932.3,2927.9,0.716]
[1769415814266,0.05113782,2930.3,2927.9,0.716]
[1769415814462,0.05113782,2930.5,2927.9,0.716]
[1769415814463,0.05113782,2930.5,2928.3,0.85373697]
[1769415814666,0.05113782,2930.5,2927.1,10.0]
[1769415814667,0.05113782,2930.3,2927.1,10.0]
[1769415814893,0.05113782,2930.3,2927.1,0.76713782]
[1769415814894,0.05113782,2930.1,2927.1,0.76713782]
[1769415815111,7.4936808,2930.4,2928.1,0.05113782]
[1769415815260,0.05113782,2930.1,2927.9,0.03208144]
[1769415815459,1.65367287,2930.3,2926.7,14.55113782]
[1769415815460,0.05113782,2930.5,2927.5,0.08529665]
[1769415815772,0.85294982,2931.1,2928.6,0.05113782]
[1769415815975,0.05113782,2930.2,2928.0,0.034153]
[1769415816173,0.05113782,2930.6,2928.0,0.034153]
[1769415816174,0.05113782,2929.5,2928.0,0.034153]
[1769415816489,0.05113782,2929.5,2927.1,0.715]
[1769415816490,0.05113782,2929.2,2927.2,0.03416233]
[1769415816692,0.05113782,2929.8,2927.2,0.03416233]
[1769415817001,0.05113782,2930.1,2927.8,0.85387903]
[1769415817309,0.34085704,2929.6,2927.9,0.85383848]
[1769415817461,0.34085704,2929.6,2928.0,0.034153]
[1769415817665,0.34085704,2929.6,2927.8,0.85387755]
[1769415817666,0.34085704,2929.6,2926.1,1.81225594]
[1769415817667,4.25177598,2929.5,2926.1,1.81225594]
[1769415817972,4.25177598,2929.5,2924.2,1.538]
[1769415817974,4.25177598,2929.5,2924.2,0.05113782]
[1769415817976,7.4936808,2926.2,2924.2,0.05113782]
[1769415818326,1.45426588,2929.4,2924.2,0.05113782]
[1769415818327,1.45426588,2929.4,2926.0,0.04444141]
[1769415818328,7.4936808,2927.4,2926.0,0.04444141]
[1769415818469,7.4936808,2927.4,2925.2,0.04444141]
[1769415818470,0.04444141,2927.5,2924.3,5.28318223]
[1769415818809,0.04444141,2928.7,2924.4,0.74919504]
[1769415818810,0.04444141,2925.9,2924.4,0.74919504]
[1769415819010,0.04444141,2926.1,2924.5,0.82428758]
[1769415819212,0.04444141,2926.5,2924.5,15.35848028]
[1769415819213,0.04444141,2925.8,2924.5,15.35848028]
[1769415819374,0.04444141,2926.1,2924.5,15.32428758]
[1769415819575,0.04444141,2925.9,2924.5,15.32428758]
[1769415819884,0.04444141,2926.1,2923.2,4.44506281]
[1769415819885,0.04444141,2925.3,2923.2,4.44506281]
[1769415820110,0.04444141,2925.3,2922.3,10.0]
[1769415820111,0.04444141,2925.6,2923.3,0.44450628]
[1769415820405,0.04444141,2924.9,2923.4,0.715]
[1769415820570,0.04444141,2925.7,2923.0,0.715]
[1769415820778,0.04444141,2924.9,2922.0,3.42228342]
[1769415820998,0.04444141,2924.9,2921.5,9.25135269]
[1769415820999,0.04444141,2925.3,2921.5,0.0016]
[1769415821000,7.4936808,2923.3,2921.5,0.0016]
[1769415821199,0.04444141,2923.6,2921.5,0.0016]
[1769415821200,0.74936808,2923.2,2921.5,0.0016]
[1769415821400,0.89288575,2923.1,2921.5,0.0016]
[1769415821607,0.8552564,2923.1,2921.5,0.0016]
[1769415822275,0.85508089,2923.7,2921.6,0.03762935]
[1769415822499,0.85508089,2923.7,2922.2,0.03762935]
[1769415822718,0.03762935,2922.8,2921.7,1.1]
[1769415822889,0.03762935,2922.8,2921.5,0.0016]
[1769415822890,10.786,2923.5,2921.5,0.0016]
[1769415822891,3.42032356,2923.8,2921.5,0.0016]
[1769415823091,0.43130338,2923.6,2921.5,0.0016]
[1769415823396,0.03762935,2922.9,2921.5,0.0016]
[1769415823595,0.8552564,2923.1,2921.5,0.0016]
[1769415823797,0.34085704,2922.7,2921.5,0.0016]
[1769415824401,0.2631534,2922.7,2921.5,0.0016]
[1769415825180,0.03079977,2922.6,2921.5,0.0016]
[1769415825410,0.2631534,2922.7,2921.5,0.0016]
[1769415825987,1.11854695,2922.7,2921.5,0.0016]
[1769415826302,0.2631534,2922.7,2921.5,0.0016]
[1769415826706,1.11852885,2922.7,2921.5,0.0016]
[1769415827199,1.5725201,2922.7,2921.5,0.0016]
[1769415827989,0.2631534,2922.7,2921.5,0.0016]
[1769415828819,0.2631534,2922.7,2921.5,0.03582899]
[1769415829119,1.11852726,2922.7,2921.5,0.03582899]
[1769415829424,0.2631534,2922.7,2921.5,0.03582899]
[1769415829620,0.2631534,2922.7,2921.5,0.0016]
[1769415829918,0.003,2922.5,2921.5,0.0016]
[1769415832309,0.03422415,2923.3,2921.6,0.03079977]
[1769415832493,0.03422415,2923.2,2921.7,0.03422664]
[1769415832688,0.03079977,2923.6,2921.7,1.13422664]
[1769415832889,0.2631534,2922.4,2921.8,0.03422547]
[1769415833212,0.2631534,2922.4,2920.8,3.45450968]
[1769415833419,0.2631534,2922.4,2921.7,0.001]
[1769415836214,0.0008,2923.0,2921.7,0.001]
[1769415836395,0.0008,2923.0,2921.7,0.01810176]
[1769415836713,0.0008,2923.0,2921.7,14.51810176]
[1769415837024,0.0008,2923.0,2921.8,1.47199132]
[1769415837763,0.0008,2923.0,2921.9,0.01709942]
[1769415838227,0.0008,2923.9,2921.9,0.01709942]
[1769415838429,0.04355112,2923.9,2922.0,0.03079977]
[1769415838723,0.04355112,2923.9,2922.1,0.01708537]
[1769415838911,0.89857747,2923.9,2922.1,0.01708537]
[1769415839322,0.0008,2923.9,2922.1,0.87262565]
[1769415839524,0.0008,2923.9,2922.1,2.06708537]
[1769415839824,0.0008,2923.9,2922.4,0.03079977]
[1769415840025,0.0008,2923.9,2922.3,0.01707951]
[1769415840449,0.0008,2923.9,2922.4,0.716]
[1769415841073,0.0008,2923.9,2921.8,1.45489015]
[1769415841074,0.03079977,2923.8,2921.8,1.45489015]
[1769415841373,0.0008,2923.9,2922.2,0.03079977]
[1769415841374,0.04355112,2923.9,2922.2,0.03079977]
[1769415841654,0.04355112,2923.9,2922.3,0.73308186]
[1769415841655,0.85583116,2923.9,2922.3,0.73308186]
[1769415841821,0.04275258,2923.8,2922.3,0.01708186]
[1769415842025,0.85583116,2923.9,2922.4,0.716]
[1769415842026,0.04355112,2923.9,2922.4,0.716]
[1769415842221,0.89857809,2923.9,2922.4,0.716]
[1769415842444,0.89857809,2923.9,2922.0,0.03079977]
[1769415842651,0.89857809,2923.9,2922.1,0.716]
[1769415842855,0.04275258,2923.8,2922.1,0.716]
[1769415843532,0.89780492,2923.8,2922.1,0.716]
[1769415843860,0.89780606,2923.8,2922.2,0.01708478]
[1769415844760,0.89780606,2923.8,2922.2,0.716]
[1769415845079,0.89780606,2923.8,2922.3,0.716]
[1769415845080,1.32967659,2923.8,2922.3,0.716]
[1769415845351,1.32967659,2923.8,2922.3,0.01708303]
[1769415845352,0.89780606,2923.8,2922.3,0.01708303]
[1769415845559,0.002,2923.7,2922.3,0.01708303]
[1769415845921,0.002,2923.7,2922.1,0.01708303]
[1769415846353,0.002,2923.7,2922.2,0.31115641]
[1769415846567,0.002,2923.7,2922.3,0.31115641]
[1769415846568,0.0427555,2923.6,2922.3,0.31115641]
[1769415846752,0.0427555,2923.6,2922.1,0.01708303]
[1769415847070,0.002,2923.7,2922.2,0.32826169]
[1769415847265,0.04475404,2923.7,2922.3,0.31117573]
[1769415847477,0.85511013,2923.6,2922.4,0.31117573]
[1769415847634,0.04275696,2923.5,2922.5,0.31117573]
[1769415847829,0.04275696,2923.5,2922.6,0.31117573]
[1769415848052,0.04275696,2923.5,2922.7,0.31117573]
[1769415848227,0.04275696,2923.5,2922.8,0.31117573]
[1769415848554,0.04275696,2923.5,2922.1,0.73308303]
[1769415848962,0.85709695,2923.7,2922.1,0.73308303]
[1769415848963,0.04275843,2923.4,2922.1,1.58862905]
[1769415849131,0.0427555,2923.6,2922.1,1.58861914]
[1769415849336,0.89788491,2923.6,2922.1,0.52126639]
[1769415849569,0.0427555,2923.6,2922.1,7.88343071]
[1769415849771,0.002,2923.7,2922.3,7.04160474]
[1769415850033,0.002,2923.7,2922.4,0.01708085]
[1769415850774,0.002,2923.7,2922.5,0.03079977]
[1769415851071,0.002,2923.7,2922.7,3.617]
[1769415851296,0.002,2923.7,2922.8,0.73307542]
[1769415851430,0.002,2923.7,2922.9,0.85531492]
[1769415851754,0.89745565,2925.0,2923.0,0.01707191]
[1769415851931,0.43182408,2924.9,2923.0,0.01707191]
[1769415852133,0.002,2925.1,2923.5,0.03079977]
[1769415852373,0.85668034,2925.1,2923.3,7.04160474]
[1769415852584,0.04273504,2925.0,2923.6,0.716]
[1769415852885,0.04273504,2925.0,2923.3,7.04160474]
[1769415852886,0.04273504,2925.0,2923.5,0.716]
[1769415853456,0.85473007,2924.9,2923.5,1.816]
[1769415853657,0.04273796,2924.8,2923.5,0.716]
[1769415853988,0.04273796,2924.8,2923.3,7.01080497]
[1769415853989,0.04273796,2924.8,2923.4,0.01704967]
[1769415854164,0.03079977,2924.6,2922.7,7.01080497]
[1769415854365,0.04273942,2924.7,2922.8,0.716]
[1769415854588,0.04273942,2924.7,2923.2,0.855212]
[1769415854886,0.04274088,2924.6,2923.2,0.85522544]
[1769415855088,0.04274234,2924.5,2923.0,0.85526706]
[1769415855394,0.0427365,2924.9,2923.1,0.78968718]
[1769415855554,0.85475929,2924.8,2923.2,0.716]
[1769415855753,0.04273942,2924.7,2923.3,0.01705377]
[1769415856154,0.03079977,2924.6,2922.6,1.56124868]
[1769415856390,0.04274234,2924.5,2922.9,0.85530857]
[1769415856682,0.04273796,2924.8,2923.1,0.85525361]
[1769415856887,0.04273796,2924.8,2922.1,0.03079977]
[1769415856888,0.07353773,2924.8,2922.1,0.03079977]
[1769415857093,0.07353773,2924.8,2920.3,1.51294291]
[1769415857094,0.0008,2921.2,2920.3,1.51294291]
[1769415857416,0.0008,2921.2,2918.7,7.85303358]
[1769415857417,1.02543335,2919.5,2918.7,7.85303358]
[1769415857560,0.97962747,2919.5,2918.8,0.78530336]
[1769415857888,1.835951,2919.5,2918.1,0.716]
[1769415858061,1.835951,2919.5,2917.9,7.85303358]
[1769415858468,0.03079977,2919.1,2917.2,0.716]
[1769415858869,0.03079977,2918.9,2917.2,0.716]
[1769415859054,0.03079977,2918.7,2917.1,0.0201511]
[1769415859595,0.88730397,2918.9,2917.1,0.0201511]
[1769415859794,1.32170362,2918.9,2917.1,0.0201511]
[1769415860158,0.03079977,2919.2,2917.4,7.87689153]
[1769415860500,0.88714011,2919.4,2917.4,7.87689153]
[1769415860501,0.03079977,2918.9,2917.4,7.87689153]
[1769415860668,0.85634034,2919.4,2917.4,7.87689153]
[1769415860669,0.82109578,2919.2,2917.4,7.87689153]
[1769415860866,0.03079977,2919.0,2917.4,7.87689153]
[1769415861270,0.82109578,2919.2,2917.4,7.87689153]
[1769415861496,0.85642835,2919.1,2917.5,0.78768915]
[1769415861794,0.85642835,2919.1,2917.4,7.87689153]
[1769415862186,1.67749846,2919.2,2917.4,7.87689153]
[1769415862799,1.70829823,2919.2,2917.4,7.87689153]
[1769415863002,0.03079977,2918.8,2916.1,0.001]
[1769415863207,0.03079977,2918.8,2914.6,7.89093799]
[1769415863208,0.03079977,2917.0,2914.6,7.89093799]
[1769415863363,5.28230463,2916.4,2914.7,0.7890938]
[1769415863562,1.269,2915.0,2914.7,0.7890938]
[1769415863884,1.269,2915.0,2914.6,7.89093799]
[1769415864262,1.269,2915.0,2914.0,0.718]
[1769415864771,0.82109578,2914.9,2914.0,0.718]
[1769415865160,30.0,2917.2,2914.5,0.03079977]
[1769415865361,0.03079977,2916.6,2914.5,7.72009282]
[1769415865588,0.85719183,2916.5,2914.5,7.72009282]
[1769415865788,0.03079977,2916.3,2914.5,7.72009282]
[1769415866001,0.03079977,2916.4,2914.5,7.72009282]
[1769415866299,0.03079977,2916.4,2914.0,0.03179977]
[1769415866300,0.03079977,2916.2,2914.4,0.717]
[1769415867057,0.03079977,2916.4,2914.0,0.001]
[1769415867260,0.03079977,2916.2,2914.0,0.718]
[1769415867513,3.42865389,2916.7,2914.0,0.718]
[1769415867514,0.9850449,2917.1,2914.5,0.03079977]
[1769415867810,0.03079977,2918.0,2914.5,0.03079977]
[1769415867811,0.85683929,2917.7,2914.9,0.03079977]
[1769415867959,0.03079977,2917.4,2915.0,0.717]
[1769415868359,0.03079977,2917.4,2914.9,8.49518208]
[1769415868360,0.03079977,2917.2,2914.9,8.49518208]
[1769415868582,5.3131044,2917.2,2915.0,0.717]
[1769415868987,5.3131044,2917.2,2915.1,0.717]
[1769415869501,0.03079977,2917.0,2915.2,0.718]
[1769415869701,0.85707429,2916.9,2915.2,0.718]
[1769415869864,0.88787406,2916.9,2915.2,0.718]
[1769415870360,0.85707429,2916.9,2915.2,0.718]
[1769415870587,0.85707429,2916.9,2915.1,0.719]
[1769415870977,0.88787406,2916.9,2915.1,0.719]
[1769415871160,3.42764437,2917.5,2915.1,8.43909282]
[1769415871357,0.04284637,2917.4,2915.2,8.56708208]
[1769415871604,0.85695677,2917.3,2915.2,8.56708208]
[1769415871789,0.0428493,2917.2,2915.2,8.56708208]
[1769415872002,3.4278271,2917.6,2915.2,8.56708208]
[1769415872003,0.03079977,2918.2,2915.4,7.72009282]
[1769415872183,0.03079977,2918.0,2915.4,7.72009282]
[1769415872387,0.03079977,2917.6,2915.6,7.72009282]
[1769415872583,0.03079977,2917.4,2915.7,0.718]
[1769415872775,0.04284783,2917.3,2915.7,0.718]
[1769415872983,0.04284637,2917.4,2915.7,9.1088963]
[1769415873713,0.89978951,2917.4,2915.7,9.1088963]
[1769415874006,0.89978951,2917.4,2915.8,9.30178593]
[1769415874301,0.03079977,2917.3,2915.8,9.30178593]
[1769415874467,0.03079977,2917.1,2915.8,9.30178593]
[1769415874664,0.04285224,2917.0,2915.8,8.3908963]
[1769415874978,0.03079977,2916.9,2915.7,0.718]
[1769415875296,0.04285518,2916.8,2915.7,0.718]
[1769415875663,0.04285518,2916.8,2915.2,0.84698926]
[1769415875664,0.03079977,2916.5,2915.2,0.84698926]
[1769415875861,0.03079977,2916.3,2915.1,0.001]
[1769415876083,0.042864,2916.2,2915.1,0.001]
[1769415877064,0.03079977,2916.4,2915.1,0.001]
[1769415877065,0.04286547,2916.1,2915.1,0.001]
[1769415877467,0.03079977,2916.4,2915.1,0.001]
[1769415877667,0.04286253,2916.3,2915.1,0.001]
[1769415877866,0.03079977,2916.0,2914.4,9.20928885]
[1769415878067,0.04286841,2915.9,2914.4,8.70978885]
[1769415878305,0.03079977,2915.6,2914.0,0.719]
[1769415878691,0.03079977,2915.6,2914.0,0.001]
[1769415878890,0.04287135,2915.7,2914.0,0.001]
[1769415879142,0.03079977,2915.4,2914.0,0.001]
[1769415879273,0.57846892,2915.7,2914.0,0.001]
[1769415879894,0.85745644,2915.6,2914.0,0.001]
[1769415880670,0.85745644,2915.6,2914.0,9.21028885]
[1769415881411,0.04287135,2915.7,2914.0,9.21028885]
[1769415881710,0.85725062,2916.3,2914.2,9.20928885]
[1769415881711,0.042864,2916.2,2914.2,9.20928885]
[1769415881907,0.85730942,2916.1,2914.2,9.20928885]
[1769415882072,0.04286694,2916.0,2914.2,9.20928885]
[1769415882530,0.04286694,2916.0,2914.2,10.06715311]
[1769415882741,0.04286694,2916.0,2914.2,9.20928885]
[1769415882949,0.04286694,2916.0,2914.4,9.20928885]
[1769415883246,0.04286841,2915.9,2914.4,9.20928885]
[1769415883542,0.04286547,2916.1,2914.4,9.20928885]
[1769415884036,0.85733882,2916.0,2914.4,9.20928885]
[1769415887448,0.042864,2916.2,2914.4,9.24008862]
[1769415887630,0.04485812,2916.6,2914.8,9.20928885]
[1769415887940,0.90202476,2916.6,2915.0,9.20928885]
[1769415888843,0.002,2916.6,2915.2,9.20928885]
[1769415889008,0.002,2916.6,2915.1,0.03079977]
[1769415889009,0.002,2916.6,2915.4,9.20928885]
[1769415890135,0.002,2916.6,2915.6,9.20928885]
[1769415890335,0.002,2916.6,2915.7,0.718]
[1769415890717,0.002,2916.8,2915.7,9.92728885]
[1769415890924,0.002,2916.8,2915.9,9.20928885]
[1769415893932,0.002,2916.8,2915.8,0.718]
[1769415894135,0.002,2916.8,2915.8,9.92728885]
[1769415895153,0.002,2916.8,2915.8,10.78467537]
[1769415895354,0.04284049,2917.8,2915.8,10.78467537]
[1769415895651,0.04284049,2917.8,2916.2,9.20928885]
[1769415895844,0.90158878,2918.0,2916.2,9.20928885]
[1769415896020,0.002,2916.6,2916.2,9.20928885]
[1769415896215,0.04284049,2917.8,2916.2,9.20928885]
[1769415896417,0.85876045,2918.0,2916.4,10.06650047]
[1769415896618,0.04283902,2917.9,2916.5,0.718]
[1769415897318,0.04283902,2917.9,2916.4,9.20928885]
[1769415897518,0.04283902,2917.9,2916.5,0.718]
[1769415897744,0.04283902,2917.9,2915.9,1.42142659]
[1769415897745,0.03079977,2917.7,2915.9,1.42142659]
[1769415897921,0.85876045,2918.0,2916.0,1.78107154]
[1769415897922,0.04284343,2917.6,2916.0,1.78107154]
[1769415898520,0.85689802,2917.5,2916.0,1.78107154]
[1769415898720,0.04284637,2917.4,2916.0,1.78107154]
[1769415899541,0.04284637,2917.4,2916.0,10.99036039]
[1769415900550,0.85695677,2917.3,2916.0,1.78107154]
[1769415900723,0.0428493,2917.2,2916.0,0.718]
[1769415901676,0.0428493,2917.2,2915.4,9.20928885]
[1769415901853,0.0428493,2917.2,2915.4,9.92728885]
[1769415902038,0.0428493,2917.2,2915.4,9.95808862]
[1769415902753,0.85701552,2917.1,2915.4,9.95808862]
[1769415902954,0.47564493,2917.0,2915.4,11.04937835]
[1769415903854,0.47564493,2917.0,2915.9,0.03079977]
[1769415903855,0.04285224,2917.0,2915.9,0.03079977]
[1769415904056,5.28723727,2918.4,2916.3,0.03079977]
[1769415904057,0.04284049,2917.8,2916.3,0.03079977]
[1769415904353,0.89965124,2917.8,2916.4,9.92728885]
[1769415904554,0.04284049,2917.8,2916.4,9.92728885]
[1769415904756,0.04284049,2917.8,2916.5,11.3346314]
[1769415905357,0.90159106,2918.0,2916.5,11.3346314]
[1769415905950,0.90159106,2918.0,2916.5,11.30383163]
[1769415908140,0.002,2917.8,2916.5,11.30383163]
[1769415908748,0.85683929,2917.7,2916.5,11.30383163]
[1769415908966,0.04284343,2917.6,2916.5,11.30383163]
[1769415909133,0.04284343,2917.6,2916.6,1.13038316]
[1769415909329,0.90165492,2917.8,2916.6,1.13038316]
[1769415909529,0.90165492,2917.8,2916.5,10.30802277]
[1769415909756,0.04484049,2917.8,2916.5,11.16519952]
[1769415909941,0.002,2917.8,2916.5,10.30802277]
[1769415910150,0.90165665,2917.8,2916.5,10.30802277]
[1769415910337,0.90165665,2917.8,2916.6,1.03080228]
[1769415912141,0.04484049,2917.8,2916.6,1.03080228]
[1769415912362,0.90167022,2917.8,2916.6,1.03080228]
[1769415912675,0.002,2917.8,2916.6,1.03080228]
[1769415912864,0.04484049,2917.8,2916.6,11.33882505]
[1769415913165,0.90165519,2917.8,2916.7,1.21960073]
[1769415913363,0.90165519,2917.8,2916.6,10.30802277]
[1769415913530,0.04484049,2917.8,2916.6,10.30802277]
[1769415913735,0.04484049,2917.8,2916.6,11.16518071]
[1769415913736,0.002,2917.8,2916.6,11.16518071]
[1769415913932,0.85881166,2917.8,2916.6,10.30802277]
[1769415914258,0.002,2917.8,2916.7,10.33882254]
[1769415914434,0.002,2917.8,2916.9,10.30802277]
[1769415914634,0.002,2917.8,2917.0,0.718]
[1769415914834,0.002,2917.8,2917.0,11.02602277]
[1769415915048,0.002,2917.8,2917.0,11.88304864]
[1769415915265,0.002,2917.8,2917.1,11.49632763]
[1769415915466,0.002,2917.8,2917.0,0.718]
[1769415916264,0.002,2917.8,2917.0,11.88305968]
[1769415916466,4.14392186,2919.0,2917.0,11.88305968]
[1769415916467,0.002,2919.1,2917.5,10.30802277]
[1769415916669,0.90132479,2918.9,2917.7,10.30802277]
[1769415916859,0.04482435,2918.9,2917.7,10.30802277]
[1769415917044,0.901312,2918.9,2917.7,11.41062505]
[1769415919567,0.901312,2918.9,2917.7,10.30802277]
[1769415919768,0.901312,2918.9,2917.6,0.718]
[1769415920070,0.002,2918.7,2917.6,0.718]
[1769415921681,0.002,2918.7,2917.7,11.1612092]
[1769415921976,0.85648765,2918.9,2917.7,11.1612092]
[1769415922272,0.04268079,2918.9,2917.8,1.18792092]
[1769415923275,3.42774073,2919.1,2917.9,11.1612092]
[1769415923276,0.002,2919.1,2917.9,11.1612092]
[1769415923478,0.85843866,2919.1,2917.9,11.1612092]
[1769415923682,0.002,2919.1,2917.9,11.1612092]
[1769415924877,0.85843582,2919.1,2917.9,11.1612092]
[1769415925070,0.002,2919.1,2917.9,11.1612092]
[1769415925378,0.002,2919.1,2918.0,1.11612092]
[1769415925873,0.002,2919.1,2917.9,11.1612092]
[1769415926277,0.002,2919.1,2917.6,11.8792092]
[1769415927284,0.85842835,2919.1,2917.6,11.8792092]
[1769415927490,0.85842835,2919.1,2917.1,11.1612092]
[1769415927685,0.85842835,2919.1,2916.5,11.8792092]
[1769415927686,5.33391404,2918.0,2916.5,11.8792092]
[1769415927985,5.36471381,2918.0,2916.5,11.8792092]
[1769415928182,5.33391404,2918.0,2916.5,11.8792092]
[1769415929358,0.85678056,2917.9,2916.5,11.8792092]
[1769415929581,0.85678056,2917.9,2916.5,13.06713012]
[1769415929783,4.27237273,2918.6,2916.5,13.92432145]
[1769415929983,4.3031725,2918.6,2916.5,13.06713012]
[1769415930182,0.03079977,2918.4,2916.5,13.06713012]
[1769415930382,0.464197,2918.4,2916.6,1.30671301]
[1769415930783,0.03079977,2918.2,2916.6,1.30671301]
[1769415930969,0.464197,2918.4,2916.6,1.30671301]
[1769415931197,0.464197,2918.4,2915.9,0.001]
[1769415931198,5.33391404,2917.1,2915.9,0.001]
[1769415931367,0.85700501,2917.2,2915.9,0.001]
[1769415931870,0.85683929,2917.7,2915.9,11.1622092]
[1769415932079,0.85683929,2917.7,2916.7,0.001]
[1769415933914,0.85683929,2917.7,2916.2,0.718]
[1769415935520,0.85683929,2917.7,2916.3,11.62892513]
[1769415936018,0.718,2918.0,2916.3,11.62892513]
[1769415936019,0.85678056,2917.9,2916.3,11.62892513]
[1769415936526,3.58548636,2918.3,2916.3,12.48615232]
[1769415936527,3.42673486,2918.3,2916.3,12.48615232]
[1769415936827,3.42673486,2918.3,2916.5,11.62892513]
[1769415937520,0.85654572,2918.7,2916.6,0.85716244]
[1769415937828,0.128,2918.6,2916.7,11.74056991]
[1769415937995,0.85654572,2918.7,2916.7,11.74056991]
[1769415938190,0.42827286,2918.6,2916.9,11.74056991]
[1769415938397,0.42827286,2918.6,2917.0,0.718]
[1769415939132,0.85654572,2918.7,2917.0,12.45856991]
[1769415939529,0.85663377,2918.4,2916.8,1.16279807]
[1769415939734,0.85663377,2918.4,2916.7,12.45856991]
[1769415940095,0.03079977,2918.3,2916.7,12.45856991]
[1769415940294,0.03079977,2918.3,2915.9,0.03179977]
[1769415940295,0.03079977,2917.9,2916.2,11.74056991]
[1769415940516,0.03079977,2917.9,2916.3,0.718]
[1769415940717,0.03079977,2917.9,2916.4,1.24585699]
[1769415941395,0.03079977,2917.9,2915.9,0.001]
[1769415941396,5.33391404,2917.0,2915.9,0.001]
[1769415941698,5.33391404,2917.0,2915.3,0.718]
[1769415941699,0.85707429,2916.9,2915.3,0.718]
[1769415942111,0.85707429,2916.9,2915.3,1.57554079]
[1769415942425,0.85707429,2916.9,2915.3,1.57553546]
[1769415942623,0.85707429,2916.9,2915.3,12.45856991]
[1769415942827,0.85707429,2916.9,2915.4,1.33161236]
[1769415943215,0.85707429,2916.9,2914.8,11.74056991]
[1769415943419,0.85707429,2916.9,2915.0,11.74056991]
[1769415943724,0.85707429,2916.9,2915.2,11.74056991]
[1769415943926,0.85707429,2916.9,2916.5,0.001]
[1769415944255,0.85707429,2916.9,2915.2,11.74056991]
[1769415944441,0.96192855,2916.8,2915.3,13.00038647]
[1769415944749,0.85707429,2916.9,2915.3,13.00038647]
[1769415944911,5.33391404,2917.0,2915.3,13.00038647]
[1769415944912,0.85706319,2917.0,2915.3,13.00038647]
[1769415945959,0.85698615,2917.2,2915.3,13.85792832]
[1769415947437,0.85697571,2917.3,2915.4,0.03079977]
[1769415947609,0.85697571,2917.3,2915.5,12.45856991]
[1769415947812,0.38799094,2917.2,2915.6,12.98950688]
[1769415948239,1.24499248,2917.2,2915.6,12.98950688]
[1769415949715,1.24499248,2917.2,2915.7,0.718]
[1769415950132,0.85707429,2916.9,2915.2,11.74056991]
[1769415950455,0.718,2916.8,2915.2,12.45856991]
[1769415950653,0.85707429,2916.9,2915.2,12.45856991]
[1769415950654,1.57507429,2916.9,2915.2,12.45856991]
[1769415950840,1.03372087,2916.8,2915.3,1.36589873]
[1769415951156,1.03372087,2916.8,2915.3,13.0721858]
[1769415951715,0.8570587,2917.0,2915.3,13.0721858]
[1769415952023,1.24499476,2917.2,2915.3,13.0721858]
[1769415952228,0.85700382,2917.2,2915.3,13.92971281]
[1769415952428,0.85700382,2917.2,2915.3,13.0721858]
[1769415952648,0.85700382,2917.2,2915.4,0.718]
[1769415953226,0.85700382,2917.2,2915.4,12.45856991]
[1769415954153,0.85666312,2918.3,2916.2,0.85728002]
[1769415954352,0.85666312,2918.3,2916.3,12.88721432]
[1769415956332,3.55643016,2918.5,2916.5,11.74056991]
[1769415956530,3.55643016,2918.5,2916.0,0.03079977]
[1769415956531,0.03079977,2917.5,2915.7,11.74056991]
[1769415956829,0.74879977,2917.6,2915.7,11.74056991]
[1769415958235,0.85689802,2917.5,2915.7,11.74056991]
[1769415961327,0.85689802,2917.5,2915.7,12.59799501]
[1769415961527,0.50024901,2917.4,2915.8,13.00036941]
[1769415961727,0.85689802,2917.5,2915.8,13.00036941]
[1769415962258,0.03079977,2917.1,2915.8,11.74056991]
[1769415962438,0.85695677,2917.3,2915.9,0.718]
[1769415963057,3.42759211,2917.8,2915.9,0.718]
[1769415963058,0.128,2917.9,2915.9,13.31591446]
[1769415963227,0.128,2917.9,2916.1,11.74056991]
[1769415963429,0.128,2917.9,2916.3,11.74056991]
[1769415964360,3.42896289,2918.1,2916.5,11.74056991]
[1769415964361,0.85872637,2918.1,2916.5,11.74056991]
[1769415964553,0.002,2918.1,2916.7,11.74056991]
[1769415966060,11.6557547,2917.3,2915.7,0.718]
[1769415966429,0.85698615,2917.2,2915.4,0.001]
[1769415966657,12.51274085,2917.2,2915.5,0.718]
[1769415967358,12.51274085,2917.2,2915.4,0.001]
[1769415967528,1.59714852,2917.1,2915.6,0.718]
[1769415968553,0.8570449,2917.0,2915.6,0.718]
[1769415969277,0.85703499,2917.1,2915.6,0.718]
[1769415969459,0.85703499,2917.1,2915.6,12.16106332]
[1769415970429,0.85703499,2917.1,2915.6,0.718]
[1769415970630,0.85698615,2917.2,2915.6,12.16106332]
[1769415970832,0.85689497,2917.6,2915.8,11.47386309]
[1769415971064,0.85689497,2917.6,2915.9,11.47735804]
[1769415971266,0.85689497,2917.6,2915.9,11.44306332]
[1769415971766,0.85689497,2917.6,2916.0,11.47735687]
[1769415971966,0.85689497,2917.6,2916.1,1.18202806]
[1769415972184,0.8568546,2917.7,2916.1,1.18202806]
[1769415972464,12.5126093,2917.7,2916.1,1.14773569]
[1769415972758,12.5126093,2917.7,2916.2,0.718]
[1769415973171,12.5126093,2917.7,2915.7,11.4773604]
[1769415973340,13.25283132,2917.6,2915.8,2.20871576]
[1769415973544,13.25283132,2917.6,2915.8,3.06611201]
[1769415974067,13.25283132,2917.6,2915.8,1.49071576]
[1769415974238,13.25283132,2917.6,2915.9,0.718]
[1769415974434,13.06672329,2917.5,2915.9,0.718]
[1769415975359,13.06672329,2917.5,2915.8,1.49071576]
[1769415975360,0.8569274,2917.4,2915.8,1.49071576]